bitfinex-derivatives/quotes_ETHF0:USTF0_20250528
["timestamp","ask_amount","ask_price","bid_price","bid_amount"]
[1748414049940,2.04212158,2631.3,2631.2,3.759]
[1748414050142,6.28240158,2631.3,2630.8,3.96765]
[1748414050338,0.75981,2631.0,2630.8,3.96765]
[1748414050648,2.5706,2630.9,2630.8,3.96765]
[1748414052944,2.5706,2630.9,2630.8,0.75985]
[1748414055649,2.5706,2630.9,2630.7,3.76470158]
[1748414055650,0.75986,2630.8,2630.7,21.23570158]
[1748414055951,0.75995,2630.6,2630.3,7.72679]
[1748414056150,1.9832,2630.5,2630.3,7.72679]
[1748414056451,1.3478,2630.4,2630.3,7.72679]
[1748414056848,1.3478,2630.4,2630.3,25.19779]
[1748414058051,1.3478,2630.4,2630.3,21.98999]
[1748414059252,1.3478,2630.4,2630.3,3.759]
[1748414059557,0.76003,2630.2,2630.1,3.76570158]
[1748414059752,0.76002,2630.3,2630.1,3.76570158]
[1748414059954,2.07972,2630.3,2630.1,3.76570158]
[1748414060155,2.07972,2630.3,2630.2,0.76003]
[1748414061350,2.07972,2630.3,2630.1,6.49525158]
[1748414061549,1.3282,2630.2,2630.1,6.49525158]
[1748414061751,2.08823,2630.2,2630.1,5.73520158]
[1748414061950,2.08823,2630.2,2630.1,21.23870158]
[1748414062559,2.08823,2630.2,2630.1,21.99876158]
[1748414063259,2.08823,2630.2,2630.1,0.76576158]
[1748414063463,1.3282,2630.2,2630.1,0.76576158]
[1748414064358,2.08823,2630.2,2630.1,0.00570158]
[1748414065657,2.08823,2630.2,2630.1,0.76576158]
[1748414068561,1.3282,2630.2,2630.1,0.76576158]
[1748414068962,2.08823,2630.2,2630.1,0.76576158]
[1748414071763,1.3282,2630.2,2630.1,0.76576158]
[1748414073065,1.3205,2630.5,2630.4,0.75998]
[1748414073262,0.6851,2630.5,2630.4,0.75998]
[1748414075262,1.44507,2630.5,2630.3,18.23199]
[1748414075563,1.2519,2630.4,2630.3,18.23199]
[1748414075759,1.2519,2630.4,2630.2,3.8443]
[1748414075760,0.76001,2630.3,2630.2,5.1832]
[1748414075955,0.76004,2630.2,2630.1,0.00570158]
[1748414076152,2.04074,2630.2,2630.1,0.00570158]
[1748414076559,2.04076,2630.2,2629.9,3.2078]
[1748414076756,0.76006,2630.2,2630.1,0.76006]
[1748414076961,1.39703,2630.3,2630.1,0.76004]
[1748414077163,0.76004,2630.2,2630.1,0.76004]
[1748414078659,0.76006,2630.1,2630.0,2.014]
[1748414078864,0.76009,2630.0,2629.9,4.60651]
[1748414079967,0.76008,2630.1,2629.9,4.60651]
[1748414080362,0.76008,2630.1,2630.0,0.76009]
[1748414080556,1.39703,2630.3,2629.9,3.8464]
[1748414080755,1.39703,2630.3,2630.1,0.76004]
[1748414080963,0.76004,2630.2,2630.1,0.76004]
[1748414081363,0.76004,2630.2,2630.0,2.74997]
[1748414082063,0.76006,2630.1,2630.0,2.74997]
[1748414082566,0.637,2630.3,2629.9,3.8464]
[1748414082762,0.76008,2630.1,2629.9,3.8464]
[1748414082964,0.76008,2630.1,2630.0,0.76009]
[1748414084376,0.637,2630.3,2630.2,0.76004]
[1748414084569,0.81434782,2630.3,2630.2,0.76004]
[1748414084766,2.09477852,2630.3,2630.2,0.76004]
[1748414085073,0.76004,2630.2,2630.1,1.44035]
[1748414085873,1.39702,2630.3,2630.2,0.76004]
[1748414086067,2.85566507,2630.3,2630.2,0.76004]
[1748414086268,2.85566507,2630.3,2630.2,2.11074]
[1748414087068,2.85567896,2630.3,2630.2,2.11074]
[1748414087271,2.67820583,2630.3,2630.2,1.3507]
[1748414087473,2.85567936,2630.3,2630.2,1.3507]
[1748414087672,2.92309353,2630.3,2630.2,1.3507]
[1748414087875,2.74562,2630.3,2630.2,1.3507]
[1748414088079,2.10862,2630.3,2630.2,2.11073]
[1748414088472,2.28613176,2630.3,2630.2,2.11073]
[1748414088680,2.10862,2630.3,2630.2,1.3507]
[1748414088876,3.56768626,2630.3,2630.2,1.3507]
[1748414089076,0.76004,2630.2,2630.1,1.44035]
[1748414089278,2.04044,2630.2,2630.1,1.44035]
[1748414090380,1.2804,2630.2,2630.1,1.44035]
[1748414090686,0.76001,2630.3,2630.1,0.6803]
[1748414090875,0.76001,2630.3,2630.2,1.2687]
[1748414091576,2.03551,2630.3,2630.2,1.2687]
[1748414091776,2.03551,2630.3,2630.2,2.02872]
[1748414092987,1.43799,2630.4,2630.3,0.76001]
[1748414093188,2.89706361,2630.4,2630.3,2.74361]
[1748414093685,2.8970634,2630.4,2630.3,0.6209]
[1748414093887,0.76003,2630.3,2630.1,0.6803]
[1748414094185,2.07213,2630.3,2630.2,0.76003]
[1748414094386,2.07213,2630.3,2630.2,1.38743]
[1748414094691,2.07213,2630.3,2630.2,2.74693]
[1748414094692,1.3121,2630.3,2630.2,2.74693]
[1748414095280,3.8849,2630.6,2630.4,0.75996]
[1748414095488,3.2078,2630.6,2630.3,1.3595]
[1748414095781,3.2078,2630.6,2630.5,0.75995]
[1748414098487,4.5248,2630.6,2630.5,0.75995]
[1748414098687,1.317,2630.6,2630.5,0.75995]
[1748414099387,1.317,2630.6,2630.5,1.38205]
[1748414100386,0.6216,2631.0,2630.8,0.75986]
[1748414100584,1.9073,2631.0,2630.6,1.9002]
[1748414100787,0.75986,2630.8,2630.7,2.01498]
[1748414101192,2.04555,2630.9,2630.8,0.75986]
[1748414101493,2.04555,2630.9,2630.7,2.01498]
[1748414101694,1.2857,2630.8,2630.7,2.01498]
[1748414104201,2.04556,2630.8,2630.7,2.01498]
[1748414105083,4.4935,2630.8,2630.4,3.2078]
[1748414105288,0.75995,2630.5,2630.4,3.2078]
[1748414105894,2.63694,2630.6,2630.4,3.96778]
[1748414106093,0.75995,2630.5,2630.4,5.24068]
[1748414106296,2.01985,2630.5,2630.4,5.24068]
[1748414107086,2.01985,2630.5,2630.4,3.96778]
[1748414107486,2.01985,2630.5,2630.4,3.2078]
[1748414108395,2.01985,2630.5,2630.4,3.96778]
[1748414109098,2.01985,2630.5,2630.4,3.2078]
[1748414109897,2.01985,2630.5,2629.9,3.2078]
[1748414109898,10.92403138,2630.5,2629.9,3.2078]
[1748414110096,1.2549,2630.4,2629.9,3.2078]
[1748414110296,0.76009,2630.1,2629.9,3.2078]
[1748414110497,2.68519,2630.0,2629.9,3.96792]
[1748414110697,1.9251,2630.0,2629.9,5.23082]
[1748414116409,0.6397,2630.3,2630.2,0.76004]
[1748414116606,5.1073,2631.1,2630.1,3.752]
[1748414116810,0.7599,2630.7,2630.2,7.7795]
[1748414117005,0.7599,2630.7,2630.3,1.3048]
[1748414117313,1.9238,2630.6,2630.5,0.75993]
[1748414119604,0.6411,2630.8,2630.7,0.75989]
[1748414119807,2.6582,2631.1,2630.8,0.75985]
[1748414120004,2.76836869,2631.0,2630.7,1.9942]
[1748414120208,1.3115,2630.9,2630.8,0.75985]
[1748414120707,2.07136,2630.9,2630.7,2.75407]
[1748414121102,1.3115,2630.8,2630.7,2.75407]
[1748414121410,2.07136,2630.8,2630.7,0.75987]
[1748414121610,0.75989,2630.7,2630.6,3.752]
[1748414121806,2.599,2630.7,2630.4,2.75417]
[1748414122011,0.75993,2630.6,2630.4,6.50617]
[1748414122211,2.02093,2630.6,2630.4,6.50617]
[1748414122812,1.261,2630.5,2630.4,6.50617]
[1748414123011,1.261,2630.5,2630.4,5.15987]
[1748414124715,2.02095,2630.5,2630.4,5.15987]
[1748414125116,2.02095,2630.5,2630.4,4.3999]
[1748414125609,2.02095,2630.5,2630.4,3.752]
[1748414125919,0.75998,2630.4,2630.3,2.1063]
[1748414126118,2.04928,2630.4,2630.3,2.1063]
[1748414126523,2.09791,2630.7,2630.6,0.75992]
[1748414126810,2.79506065,2630.7,2630.5,0.75993]
[1748414127021,2.04922,2630.6,2630.5,0.75993]
[1748414127316,2.04922,2630.6,2630.5,2.05473]
[1748414129016,1.2893,2630.6,2630.5,2.05473]
[1748414129218,2.04922,2630.6,2630.5,2.05473]
[1748414131516,3.33000351,2630.6,2630.5,2.05473]
[1748414131717,3.33000351,2630.6,2630.5,1.2948]
[1748414132018,3.33000351,2630.6,2630.4,1.43747]
[1748414132222,1.3552,2630.5,2630.4,1.43747]
[1748414132517,1.3552,2630.5,2630.4,2.74207]
[1748414132818,0.75992,2630.6,2630.5,0.75995]
[1748414133018,2.21826953,2630.6,2630.5,2.06455]
[1748414133616,2.21912284,2630.6,2630.5,2.06455]
[1748414134022,3.48942284,2630.6,2630.5,2.06455]
[1748414134617,0.76,2630.4,2630.3,4.512]
[1748414134818,1.2703,2630.5,2630.3,21.971]
[1748414135012,2.03027,2630.5,2630.4,0.75998]
[1748414135316,2.03027,2630.5,2630.4,1.9254]
[1748414136220,2.2085747,2630.5,2630.4,1.9254]
[1748414136421,2.03027,2630.5,2630.4,2.68538]
[1748414137523,2.03027,2630.5,2630.4,1.9254]
[1748414137713,2.03027,2630.5,2630.4,2.68538]
[1748414138017,2.03027,2630.5,2630.4,1.9254]
[1748414139513,2.20856883,2630.5,2630.4,1.9254]
[1748414139712,2.03027,2630.5,2630.4,1.9254]
[1748414139915,1.2703,2630.5,2630.4,2.68538]
[1748414140115,1.338,2630.7,2630.6,0.75992]
[1748414140417,2.09789,2630.7,2630.6,0.75992]
[1748414142019,1.338,2630.7,2630.6,0.75992]
[1748414142520,2.6557,2630.7,2630.6,0.75992]
[1748414144222,3.41559,2630.7,2630.6,0.75992]
[1748414144420,2.6557,2630.7,2630.6,0.75992]
[1748414145223,3.41559,2630.7,2630.6,0.75992]
[1748414146123,4.69649958,2630.7,2630.6,0.75992]
[1748414146320,4.87589433,2630.7,2630.6,0.75992]
[1748414146622,2.835095,2630.7,2630.6,0.75992]
[1748414146819,2.83509358,2630.7,2630.6,0.75992]
[1748414147023,4.1160179,2630.7,2630.6,0.75992]
[1748414147217,4.11601803,2630.7,2630.6,0.75992]
[1748414147425,4.87590803,2630.7,2630.6,0.75992]
[1748414147614,4.87590607,2630.7,2630.6,0.75992]
[1748414148421,4.8758347,2630.7,2630.6,0.75992]
[1748414148723,4.8758418,2630.7,2630.6,0.75992]
[1748414148924,4.87584322,2630.7,2630.6,0.75992]
[1748414149227,4.87584803,2630.7,2630.6,0.75992]
[1748414149425,4.87585029,2630.7,2630.6,0.75992]
[1748414150129,4.87585145,2630.7,2630.6,0.75992]
[1748414150329,0.75992,2630.6,2630.5,2.04273]
[1748414150627,3.57690085,2630.6,2630.5,2.04273]
[1748414150828,3.57689911,2630.6,2630.5,2.04273]
[1748414151219,3.57689537,2630.6,2630.5,2.04273]
[1748414151625,2.81697537,2630.6,2630.2,3.8477]
[1748414151923,0.76008,2630.1,2629.8,24.4098]
[1748414152122,1.3537,2630.0,2629.9,0.76012]
[1748414152323,1.3537,2630.0,2629.9,2.09822]
[1748414152824,0.76003,2630.2,2630.1,0.76006]
[1748414153026,2.21903142,2630.2,2630.1,0.76006]
[1748414153225,2.03977989,2630.2,2630.1,0.76006]
[1748414153425,2.21899779,2630.2,2630.1,0.76006]
[1748414153625,2.84149779,2630.2,2630.0,2.73388]
[1748414153926,1.3537,2630.1,2630.0,2.73388]
[1748414155531,2.11376,2630.1,2630.0,2.73388]
[1748414157737,2.11376,2630.1,2630.0,1.39578]
[1748414158140,2.11376,2630.1,2630.0,0.76008]
[1748414159442,1.3537,2630.1,2630.0,0.76008]
[1748414160841,2.11376,2630.1,2630.0,0.76008]
[1748414161437,2.11376,2630.1,2629.9,1.3657]
[1748414161644,1.3654,2630.0,2629.9,1.3657]
[1748414161836,1.3654,2630.0,2629.9,2.12582]
[1748414163646,0.6225,2630.2,2630.1,0.76006]
[1748414164143,2.12541,2630.3,2630.2,0.76003]
[1748414164344,3.58321414,2630.3,2630.2,0.76003]
[1748414164536,0.76003,2630.2,2630.1,2.08534]
[1748414164944,2.10223,2630.2,2630.1,2.08534]
[1748414165940,2.10223,2630.2,2630.1,1.3253]
[1748414166141,0.76006,2630.1,2630.0,0.76007]
[1748414166336,2.74036,2630.1,2629.9,0.7601]
[1748414166542,0.76012,2629.9,2629.8,5.17153]
[1748414166742,0.76012,2629.9,2629.8,6.46443]
[1748414166939,0.76012,2629.9,2629.8,2.71643]
[1748414167243,0.76015,2629.8,2629.7,0.6381]
[1748414167446,0.76021,2629.6,2629.5,4.4157]
[1748414167642,1.953,2629.7,2629.5,4.4157]
[1748414167946,4.50274219,2629.8,2629.5,4.4157]
[1748414167947,3.21350158,2629.8,2629.7,0.76018]
[1748414168348,3.21350158,2629.8,2629.6,1.2898]
[1748414168639,0.76018,2629.7,2629.6,1.2898]
[1748414168842,2.71318,2629.7,2629.6,1.2898]
[1748414169839,2.71318,2629.7,2629.6,2.05001]
[1748414171943,1.2792,2629.7,2629.6,2.05001]
[1748414172848,0.00570158,2629.8,2629.7,0.76018]
[1748414176949,0.00570158,2629.8,2629.7,2.11688]
[1748414180151,3.2078,2630.7,2629.8,1.90031]
[1748414180352,0.75999,2630.4,2630.1,3.2078]
[1748414180647,1.3049,2630.5,2630.3,0.75998]
[1748414180648,2.06487,2630.5,2630.3,0.75998]
[1748414180950,1.3049,2630.5,2630.4,0.75998]
[1748414181150,1.3049,2630.5,2630.4,3.96778]
[1748414181552,1.3049,2630.5,2630.4,5.31638]
[1748414181748,0.00570158,2630.7,2630.6,0.75992]
[1748414182349,0.00570158,2630.7,2630.6,1.42102]
[1748414188051,3.2078,2631.4,2631.3,0.75972]
[1748414188251,3.2078,2631.4,2631.3,4.50372]
[1748414189049,4.5575,2631.4,2631.3,4.50372]
[1748414189254,2.10939,2631.4,2631.3,3.744]
[1748414190658,1.3497,2631.4,2631.1,0.00570158]
[1748414190955,0.75974,2631.2,2631.1,0.00570158]
[1748414191343,2.10944,2631.2,2631.1,0.00570158]
[1748414191855,2.76934,2631.2,2631.1,0.00570158]
[1748414192057,2.76935,2631.2,2631.1,0.00570158]
[1748414192655,2.76935,2631.2,2631.1,0.76547158]
[1748414192849,2.0096,2631.2,2631.1,0.76547158]
[1748414193955,2.0096,2631.2,2631.1,2.14207158]
[1748414194456,2.76934,2631.2,2631.1,1.38230158]
[1748414194654,2.76934,2631.2,2631.1,0.00570158]
[1748414196259,7.76934,2631.2,2631.1,0.00570158]
[1748414196558,2.76934,2631.2,2631.1,0.00570158]
[1748414197767,2.76934,2631.2,2630.7,4.50289]
[1748414197768,1.89949,2631.1,2630.6,3.2078]
[1748414197961,3.2078,2630.7,2630.3,6.9468]
[1748414198260,0.75998,2630.4,2630.3,3.2078]
[1748414200663,0.76003,2630.2,2630.1,0.00570158]
[1748414201368,1.40793,2630.2,2630.1,0.00570158]
[1748414206574,1.40793,2630.2,2629.5,19.3555]
[1748414206575,0.76021,2629.6,2629.5,3.74]
[1748414206865,0.76029,2629.3,2629.1,4.95741831]
[1748414207067,0.76031,2629.3,2629.1,1.74959831]
[1748414207263,1.2728,2629.2,2629.1,1.74959831]
[1748414207565,1.2728,2629.2,2629.1,2.40719831]
[1748414207969,0.00570158,2629.4,2629.3,0.76029]
[1748414210569,0.76598158,2629.4,2629.2,2.04522]
[1748414210773,0.76598158,2629.4,2629.3,1.2684]
[1748414211672,0.00570158,2629.4,2629.3,2.02869]
[1748414211973,1.34230158,2629.4,2629.3,2.02869]
[1748414212177,0.00570158,2629.4,2629.3,2.02869]
[1748414213276,0.00570158,2629.4,2629.3,1.2684]
[1748414213879,0.00570158,2629.4,2629.3,2.02869]
[1748414214573,0.76597158,2629.4,2629.3,1.2684]
[1748414215277,0.00570158,2629.4,2629.3,2.02869]
[1748414215469,1.27250158,2629.4,2629.3,2.02869]
[1748414215876,2.03277158,2629.4,2629.3,2.02869]
[1748414216072,1.27250158,2629.4,2629.3,2.02869]
[1748414216869,2.03277158,2629.4,2629.3,2.02869]
[1748414217074,1.27250158,2629.4,2629.3,2.02869]
[1748414217273,0.00570158,2629.4,2629.3,2.02869]
[1748414218272,0.76597158,2629.4,2629.3,2.02869]
[1748414218871,0.76597158,2629.4,2629.3,1.2684]
[1748414219776,2.12907158,2629.4,2629.3,1.2684]
[1748414222170,2.12907158,2629.4,2629.3,2.02869]
[1748414223872,2.12907158,2629.4,2629.1,18.7895]
[1748414223873,1.36880158,2629.4,2629.1,1.3445]
[1748414224165,1.90112,2628.8,2628.3,3.741]
[1748414224375,1.90112,2628.8,2628.3,0.6513]
[1748414224376,0.76055,2628.4,2628.3,0.6513]
[1748414224577,5.8254,2628.7,2628.3,2.78577]
[1748414224772,0.76053,2628.5,2628.3,2.0252]
[1748414224981,0.76053,2628.5,2628.3,2.78577]
[1748414225166,0.76052,2628.6,2628.4,0.76055]
[1748414225372,0.76053,2628.5,2628.4,1.3123]
[1748414226174,0.76055,2628.4,2628.3,0.6513]
[1748414226370,3.96836,2628.4,2628.2,2.7183]
[1748414226679,1.3562,2628.3,2628.2,2.7183]
[1748414226869,2.11678,2628.3,2628.2,1.9577]
[1748414227570,1.3562,2628.3,2628.0,3.741]
[1748414227772,1.3562,2628.3,2628.0,5.7218]
[1748414227974,2.1168,2628.3,2628.1,0.76063]
[1748414228174,2.1168,2628.3,2628.0,6.47945]
[1748414228373,0.76062,2628.2,2628.0,6.47945]
[1748414228575,1.3491,2628.1,2628.0,6.47945]
[1748414233978,0.76054,2628.5,2628.3,0.76056]
[1748414234179,4.4895,2628.7,2628.0,5.7188]
[1748414234482,3.2078,2628.7,2628.6,0.76049]
[1748414234878,1.3413,2628.9,2628.4,8.8178]
[1748414235079,0.665,2629.1,2629.0,0.76038]
[1748414235573,1.3413,2629.2,2629.1,0.76035]
[1748414236984,0.00570158,2629.4,2629.3,0.76029]
[1748414237189,0.00570158,2629.4,2629.3,4.49929]
[1748414237488,0.00570158,2629.4,2629.3,21.94929]
[1748414237785,0.00570158,2629.4,2629.3,30.15709]
[1748414237983,1.3341,2630.0,2629.9,0.76012]
[1748414238181,1.3341,2630.0,2629.8,4.49913]
[1748414238379,1.3341,2630.0,2629.9,1.2986]
[1748414238578,1.3341,2630.0,2629.9,2.05872]
[1748414238785,1.3341,2630.0,2629.9,1.2986]
[1748414239287,1.3341,2630.0,2629.9,2.05872]
[1748414239489,3.97353158,2630.2,2629.9,2.05872]
[1748414239783,3.21350158,2630.2,2630.1,0.76006]
[1748414239982,4.54760158,2630.2,2629.7,1.34440158]
[1748414240186,0.76014,2629.8,2629.7,0.00570158]
[1748414240689,2.02044,2629.8,2629.7,0.00570158]
[1748414243788,6.2603,2629.8,2629.2,3.2078]
[1748414243982,1.2603,2629.8,2629.2,3.96812]
[1748414244183,0.76024,2629.5,2629.3,0.76029]
[1748414244485,1.2658,2629.4,2629.3,0.76029]
[1748414244686,1.2658,2629.4,2629.2,5.2287]
[1748414244988,1.2658,2629.4,2629.2,2.0209]
[1748414245189,2.02607,2629.4,2629.2,2.0209]
[1748414246191,2.02607,2629.4,2629.2,1.2606]
[1748414246391,0.76035,2629.1,2629.0,0.6393]
[1748414246688,0.7604,2628.9,2628.8,1.2476]
[1748414246880,0.76043,2628.8,2628.6,45.2818]
[1748414247088,0.76042,2628.9,2628.6,45.2818]
[1748414247286,0.76042,2628.9,2628.7,2.00806]
[1748414248386,0.76043,2628.8,2628.7,1.2476]
[1748414248590,0.76046,2628.7,2628.6,45.2818]
[1748414250194,0.76046,2628.7,2628.6,3.2078]
[1748414251295,0.76046,2628.7,2628.6,3.96829]
[1748414252097,0.76045,2628.8,2628.6,3.96829]
[1748414253399,2.07456,2628.7,2628.6,3.2078]
[1748414260198,0.76045,2628.8,2628.6,3.2078]
[1748414260405,0.76045,2628.8,2628.7,1.2516]
[1748414265800,0.76052,2628.5,2628.4,1.2863]
[1748414265999,1.36410158,2628.7,2628.0,3.2078]
[1748414266302,0.76072,2627.8,2627.7,4.3582]
[1748414266601,0.76072,2627.8,2627.7,21.8042]
[1748414267306,0.76072,2627.8,2627.7,1.969]
[1748414267702,0.76072,2627.8,2627.7,23.152]
[1748414268106,2.11911,2627.9,2627.7,23.91275]
[1748414268311,2.11911,2627.9,2627.8,1.355]
[1748414268600,1.3584,2627.9,2627.8,2.11572]
[1748414268807,0.00570158,2628.0,2627.9,0.76069]
[1748414269002,0.00570158,2628.0,2627.9,5.32349]
[1748414270102,0.00570158,2628.0,2627.9,10.32349]
[1748414271610,0.00570158,2628.0,2627.9,31.50949]
[1748414279412,0.00570158,2628.0,2627.9,26.50949]
[1748414280109,0.00570158,2628.0,2627.9,9.06149]
[1748414280320,0.00570158,2628.0,2627.9,26.50949]
[1748414280507,0.00570158,2628.0,2627.9,9.06149]
[1748414280706,0.00570158,2628.0,2627.9,26.50949]
[1748414281311,0.00570158,2628.0,2627.9,9.06149]
[1748414281510,0.00570158,2628.0,2627.9,26.50949]
[1748414283514,0.00570158,2628.0,2627.9,9.06149]
[1748414283714,0.00570158,2628.0,2627.9,26.50949]
[1748414286003,0.6228,2628.7,2628.2,1.90148]
[1748414286204,3.2078,2628.8,2628.7,0.76046]
[1748414286517,3.2078,2628.8,2628.7,18.20846]
[1748414287211,4.5151,2628.8,2628.7,18.20846]
[1748414287618,1.3073,2628.8,2628.7,18.20846]
[1748414290723,1.3073,2628.8,2628.7,21.94546]
[1748414291111,0.64390158,2629.0,2628.9,0.76041]
[1748414292321,1.90460158,2629.0,2628.9,0.76041]
[1748414292616,1.90460158,2629.0,2628.9,18.20841]
[1748414294114,0.00570158,2629.0,2628.9,18.20841]
[1748414294314,0.00570158,2629.0,2628.9,19.48861]
[1748414295420,1.2704,2629.3,2629.2,0.76032]
[1748414295621,2.03071,2629.3,2629.2,21.181]
[1748414295821,1.2704,2629.3,2629.2,21.94132]
[1748414296014,2.03069,2629.3,2629.2,0.76032]
[1748414296210,1.2704,2629.3,2628.9,3.2078]
[1748414296419,0.76036,2629.1,2629.0,17.445]
[1748414297020,0.76034,2629.2,2629.0,18.20538]
[1748414297325,1.9273,2629.1,2629.0,18.20538]
[1748414298818,1.2704,2629.1,2629.0,18.20538]
[1748414299022,0.67620158,2629.4,2629.3,0.76029]
[1748414299216,0.67620158,2629.4,2629.3,4.49629]
[1748414301329,0.76029,2629.3,2629.0,1.297]
[1748414301528,1.2639,2629.2,2629.1,21.94135]
[1748414302120,1.2639,2629.2,2629.1,23.19155]
[1748414302419,0.67620158,2629.4,2629.3,0.76029]
[1748414303523,1.43646158,2629.4,2629.1,22.4312]
[1748414303726,1.43646158,2629.4,2629.3,0.76029]
[1748414304828,1.43646158,2629.4,2629.2,17.443]
[1748414305030,1.3427,2629.3,2629.2,18.20329]
[1748414305232,1.3427,2629.3,2629.0,1.297]
[1748414305428,0.76034,2629.2,2629.1,3.736]
[1748414306122,2.10301,2629.3,2629.1,4.49633]
[1748414306727,0.76032,2629.2,2629.1,4.49633]
[1748414306927,2.10302,2629.2,2629.1,3.736]
[1748414307637,0.76035,2629.1,2629.0,0.76036]
[1748414307932,2.74785,2629.1,2629.0,0.76036]
[1748414308135,1.9875,2629.1,2629.0,0.76038]
[1748414308439,2.74786,2629.1,2628.9,3.96819]
[1748414308631,0.6794,2629.0,2628.9,3.96819]
[1748414308833,2.0381,2629.0,2628.9,3.96819]
[1748414309227,2.0381,2629.0,2628.9,5.32649]
[1748414309634,2.0381,2629.0,2628.9,2.11869]
[1748414309834,2.0381,2629.0,2628.9,4.49639]
[1748414310032,2.79848,2629.0,2628.9,4.49639]
[1748414310840,2.0381,2629.0,2628.9,4.49639]
[1748414311346,2.79848,2629.0,2628.9,4.49641]
[1748414311645,2.79848,2629.0,2628.9,3.736]
[1748414312847,2.0381,2629.0,2628.9,4.49641]
[1748414313347,2.79848,2629.0,2628.9,4.49641]
[1748414313646,2.79848,2629.0,2628.9,3.736]
[1748414315049,5.2459,2629.0,2628.5,0.00570158]
[1748414315249,5.2459,2629.0,2628.6,3.736]
[1748414315549,0.76046,2628.7,2628.6,3.736]
[1748414316047,0.76049,2628.6,2628.5,0.00570158]
[1748414316246,0.76049,2628.6,2628.5,3.74170158]
[1748414316651,0.76049,2628.6,2628.5,4.50222158]
[1748414316949,0.76048,2628.7,2628.5,4.50222158]
[1748414317146,2.11115,2628.8,2628.6,2.09429]
[1748414318752,0.76046,2628.7,2628.6,2.09429]
[1748414319047,0.76046,2628.7,2628.6,1.3338]
[1748414323747,0.76049,2628.6,2628.5,0.00570158]
[1748414323940,0.76064,2628.1,2628.0,2.6037]
[1748414324146,0.76064,2628.1,2628.0,23.7837]
[1748414325257,0.76064,2628.1,2628.0,3.736]
[1748414325553,2.66914,2628.1,2628.0,3.736]
[1748414325849,0.7607,2627.9,2627.8,0.00570158]
[1748414326351,0.7607,2627.9,2627.1,0.30843906]
[1748414326352,3.2078,2626.7,2624.8,3.2078]
[1748414326653,0.76145,2625.3,2625.2,1.2469]
[1748414326841,0.76156,2624.9,2624.8,4.4042]
[1748414327047,0.76154,2625.0,2624.9,1.2469]
[1748414327251,3.96932,2625.1,2624.9,1.2469]
[1748414327450,3.2078,2625.1,2624.9,1.2469]
[1748414327650,0.00571265,2625.2,2625.0,0.76151]
[1748414327849,0.00571265,2625.2,2625.1,2.0084]
[1748414328253,0.00571265,2625.2,2625.1,1.2469]
[1748414328650,0.00571265,2625.2,2625.1,2.0084]
[1748414328955,0.00571265,2625.2,2625.1,10.9544]
[1748414329256,3.2078,2625.8,2625.4,0.7614]
[1748414329455,3.2078,2625.8,2625.5,5.315]
[1748414329653,3.2078,2625.8,2625.5,2.13039]
[1748414329858,1.2905,2625.9,2625.6,3.946]
[1748414330156,1.2905,2625.9,2625.7,1.369]
[1748414330761,0.00571265,2626.0,2625.7,2.13032]
[1748414331149,0.00571265,2626.0,2625.9,0.76127]
[1748414331356,0.00571265,2626.0,2625.8,2.13029]
[1748414331855,0.00571265,2626.0,2625.9,0.76127]
[1748414332050,0.00571265,2626.0,2625.9,2.02547]
[1748414332257,0.00571265,2626.0,2625.9,5.97247]
[1748414335659,2.056e-05,2626.0,2625.9,10.97247]
[1748414335864,2.056e-05,2626.0,2625.9,7.02547]
[1748414336068,2.056e-05,2626.0,2625.9,28.76547]
[1748414336268,2.056e-05,2626.0,2625.9,2.02547]
[1748414336564,2.056e-05,2626.0,2625.9,5.97247]
[1748414339166,2.056e-05,2626.0,2625.9,10.97247]
[1748414339368,2.056e-05,2626.0,2625.9,11.60277]
[1748414339568,2.056e-05,2626.0,2625.9,12.22637]
[1748414342169,3.2078,2627.0,2626.9,0.76098]
[1748414342369,3.2078,2627.0,2626.9,4.70798]
[1748414343370,4.575,2627.0,2626.9,4.70798]
[1748414343566,3.2078,2627.0,2626.9,4.70798]
[1748414343770,3.2078,2627.0,2626.9,5.95968]
[1748414344066,1.37291265,2627.2,2627.1,0.76092]
[1748414344067,0.00571265,2627.2,2627.1,0.76092]
[1748414344575,0.00571265,2627.2,2627.1,8.96872]
[1748414345570,0.00571265,2627.2,2627.1,25.69672]
[1748414346170,0.00571265,2627.2,2627.1,30.69672]
[1748414347170,0.00571265,2627.2,2627.1,3.96872]
[1748414347467,0.00571265,2627.2,2627.1,21.733]
[1748414347666,1.25451265,2627.2,2627.1,22.49392]
[1748414348874,2.01542265,2627.2,2627.1,3.947]
[1748414349069,2.01542265,2627.2,2627.1,4.70792]
[1748414349270,1.25451265,2627.2,2627.1,4.70792]
[1748414349966,2.01541265,2627.2,2627.1,3.947]
[1748414350175,0.76095,2627.0,2626.9,0.00571265]
[1748414350366,0.76095,2627.0,2626.9,3.95271265]
[1748414350565,0.76095,2627.0,2626.9,4.71369265]
[1748414350765,0.76094,2627.1,2626.9,4.71369265]
[1748414350965,1.2758,2627.0,2626.9,4.71369265]
[1748414351166,2.03675,2627.0,2626.9,3.95271265]
[1748414351368,5.24455,2627.0,2626.9,0.00571265]
[1748414352569,9.4836,2627.0,2626.5,38.365]
[1748414352772,6.38602,2627.0,2626.5,3.947]
[1748414352974,0.76107,2626.6,2626.5,3.947]
[1748414354370,2.0053,2626.8,2626.3,0.00571265]
[1748414354574,1.3594,2626.5,2626.3,0.00571265]
[1748414354775,1.3594,2626.5,2626.4,0.76113]
[1748414356577,5.32832,2626.5,2626.3,0.00571265]
[1748414356972,1.90283,2626.4,2625.8,3.922]
[1748414357167,0.76127,2625.9,2625.8,3.922]